bitfinex/quotes_ETHUSD_20250824
["timestamp","ask_amount","ask_price","bid_price","bid_amount"]
[1756032604869,9.55276617,4751.9,4751.8,0.30030001]
[1756032605070,9.74698272,4751.9,4751.8,0.30030001]
[1756032605479,6.18798272,4751.9,4751.8,0.30030001]
[1756032605792,9.74698272,4751.9,4751.8,0.30030001]
[1756032605995,10.06058272,4751.9,4751.8,1e-08]
[1756032606193,11.11598039,4751.9,4751.8,1e-08]
[1756032606394,11.11598039,4751.9,4751.3,0.001]
[1756032606395,2.10464284,4751.4,4751.3,0.001]
[1756032606594,6.11048763,4751.4,4751.3,0.001]
[1756032606797,10.56796218,4751.4,4751.3,0.001]
[1756032607109,10.56796218,4751.4,4750.8,0.021]
[1756032607110,3.0,4751.3,4750.8,0.021]
[1756032607270,7.63067638,4751.2,4750.8,0.021]
[1756032607469,2.10486434,4750.9,4750.8,0.021]
[1756032607694,9.30418368,4750.9,4750.8,0.021]
[1756032608270,9.93726268,4750.9,4750.8,0.021]
[1756032608820,11.04333881,4750.9,4750.8,0.021]
[1756032609499,10.71386268,4750.9,4750.8,1e-08]
[1756032609716,12.32575516,4750.9,4750.8,1e-08]
[1756032610096,2.10517451,4750.2,4750.1,0.04]
[1756032610295,10.42497513,4750.2,4750.1,0.04]
[1756032610488,10.42497513,4750.2,4750.1,0.3403]
[1756032611432,9.30449385,4750.2,4750.1,0.3403]
[1756032612787,9.63401033,4750.2,4750.1,0.3403]
[1756032612987,9.63401033,4750.2,4750.1,0.04]
[1756032613592,2.10530748,4749.9,4749.8,0.02]
[1756032613899,10.16939456,4749.9,4749.8,0.02]
[1756032614107,10.63239456,4749.9,4749.8,0.02]
[1756032614306,9.88675227,4749.9,4749.8,0.02]
[1756032614608,10.63239456,4749.9,4749.8,0.02]
[1756032615093,10.16939456,4749.9,4749.8,0.02]
[1756032615287,10.63239456,4749.9,4749.8,0.02]
[1756032615503,10.16939456,4749.9,4749.8,0.02]
[1756032616124,9.11015227,4749.9,4749.8,0.02]
[1756032616691,9.42375227,4749.9,4749.8,0.02]
[1756032616886,10.68675227,4749.9,4749.8,0.02]
[1756032617224,11.43239456,4749.9,4749.8,0.02]
[1756032617530,6.81515227,4749.9,4749.8,0.3203]
[1756032617728,9.11015227,4749.9,4749.8,0.7628]
[1756032618213,5.55215227,4749.9,4749.8,0.7628]
[1756032618598,9.11015227,4749.9,4749.8,0.7628]
[1756032618797,9.11015227,4749.9,4749.8,0.3203]
[1756032619932,9.11115227,4749.9,4749.8,0.3203]
[1756032621296,9.11115227,4749.9,4749.8,0.3213]
[1756032621498,7.00584479,4749.9,4749.8,0.3213]
[1756032621806,3.44684479,4749.9,4749.8,1.2957]
[1756032622000,4.00606926,4749.9,4749.8,1.2957]
[1756032622197,0.44684479,4749.9,4749.8,1.42527]
[1756032622433,1.00172447,4750.2,4750.1,0.5]
[1756032622638,0.55922447,4750.5,4750.4,0.5]
[1756032622838,0.55922447,4750.5,4750.4,0.8005]
[1756032623131,5.66426604,4750.5,4750.4,1.2749]
[1756032623317,3.18491436,4750.5,4750.4,0.8005]
[1756032623504,1.07987279,4750.5,4750.4,0.8005]
[1756032623834,1.07987279,4750.5,4750.4,1.2749]
[1756032624133,0.633028,4750.5,4750.4,1.2749]
[1756032624432,3.18491436,4750.5,4750.4,0.8005]
[1756032625031,3.18613508,4750.5,4750.4,0.3005]
[1756032625241,2.1052377,4750.1,4750.0,0.5]
[1756032625402,2.10530748,4749.9,4749.8,0.021]
[1756032625736,5.10530748,4749.9,4749.8,0.021]
[1756032625938,5.85227299,4749.9,4749.8,0.021]
[1756032626330,6.18178892,4749.9,4749.8,0.016804]
[1756032626734,6.18178892,4749.9,4749.8,0.516804]
[1756032626735,5.88288892,4749.9,4749.8,0.516804]
[1756032626903,5.88288892,4749.9,4749.8,0.317304]
[1756032627342,5.88288892,4749.9,4749.8,0.016804]
[1756032627704,6.38288892,4749.9,4749.8,0.516804]
[1756032627911,6.38288892,4749.9,4749.8,0.817304]
[1756032628108,6.38288892,4749.9,4749.8,0.317304]
[1756032628306,6.38288892,4749.9,4749.8,0.817304]
[1756032629651,3.94806551,4749.9,4749.8,1.291704]
[1756032629868,0.56008189,4750.8,4750.7,0.5]
[1756032630054,1.00830839,4750.9,4750.7,0.9744]
[1756032630253,0.4482265,4750.9,4750.7,0.9744]
[1756032630422,0.632999,4750.8,4750.7,0.9744]
[1756032630627,1.0812255,4750.8,4750.7,1.2749]
[1756032630940,0.632999,4750.8,4750.7,1.2749]
[1756032631626,0.4482265,4751.0,4750.7,1.40239]
[1756032631828,0.4482265,4751.2,4751.1,0.5]
[1756032632029,2.10455741,4751.6,4751.1,0.3005]
[1756032632333,2.10486434,4750.9,4750.8,0.5]
[1756032632532,0.5,4751.2,4750.8,0.8005]
[1756032632733,0.94802362,4751.2,4750.9,0.4744]
[1756032632964,0.5,4751.2,4751.1,0.8005]
[1756032633166,0.5,4751.2,4751.1,1.40239]
[1756032633478,0.02,4751.8,4751.7,0.5]
[1756032633766,0.02,4751.8,4751.7,0.8005]
[1756032633938,0.652794,4751.8,4751.7,0.8005]
[1756032634137,3.08663823,4751.8,4751.7,0.8005]
[1756032634330,3.38553823,4751.8,4751.7,0.5]
[1756032634662,2.10464284,4751.4,4751.3,0.5]
[1756032634852,2.10499726,4750.6,4750.5,1.619]
[1756032635054,2.10499726,4750.6,4750.5,1.9195]
[1756032635750,2.1049469,4750.8,4750.7,0.5]
[1756032635940,2.1049469,4750.8,4750.7,0.8005]
[1756032637436,0.32944579,4750.9,4750.7,1.56429]
[1756032637645,0.32944579,4750.9,4750.7,1.08989]
[1756032637840,2.10490864,4750.8,4750.7,1.08989]
[1756032638050,2.43632447,4750.9,4750.7,0.3005]
[1756032638233,0.33144579,4750.9,4750.8,0.5]
[1756032638428,2.43631013,4750.9,4750.8,0.8005]
[1756032639068,2.43631013,4750.9,4750.8,0.5]
[1756032639365,5.10491517,4750.8,4750.5,1.619]
[1756032639664,2.10499726,4750.6,4750.5,1.619]
[1756032640076,2.73797526,4750.6,4750.5,1.619]
[1756032640774,0.632978,4750.6,4750.5,2.8939]
[1756032640998,0.002,4750.9,4750.5,3.0558]
[1756032641151,2.10686434,4750.9,4750.8,0.5]
[1756032641353,0.002,4750.9,4750.8,1.2749]
[1756032641580,5.73976334,4750.9,4750.8,1.2749]
[1756032641871,5.73976334,4750.9,4750.8,0.8005]
[1756032642482,6.06919002,4750.9,4750.8,0.8005]
[1756032642681,6.06919002,4750.9,4750.5,1.619]
[1756032642682,2.10499726,4750.6,4750.5,1.619]
[1756032643179,2.10495681,4750.7,4750.6,0.5]
[1756032643492,2.10495681,4750.7,4750.6,0.8005]
[1756032643679,3.96432568,4750.9,4750.6,0.8005]
[1756032643885,2.10491574,4750.8,4750.6,1.2749]
[1756032644084,0.96432568,4750.9,4750.6,0.8005]
[1756032644258,3.0,4750.8,4750.6,0.8005]
[1756032644454,5.10491607,4750.8,4750.6,0.8005]
[1756032644661,3.0,4750.8,4750.6,0.8005]
[1756032644861,3.0,4750.8,4750.6,1.2749]
[1756032645450,3.0,4750.8,4750.7,0.4744]
[1756032645649,3.0,4750.8,4750.7,0.7749]
[1756032647382,3.0,4750.8,4750.7,0.3005]
[1756032648088,3.0,4750.8,4750.7,0.7749]
[1756032648286,3.0,4750.8,4750.6,0.5]
[1756032648589,0.2989,4750.7,4750.6,0.5]
[1756032648786,2.40385295,4750.7,4750.6,0.5]
[1756032649155,5.40385295,4750.7,4750.6,0.5]
[1756032649585,5.84865295,4750.7,4750.6,4.2135]
[1756032650676,5.10495295,4750.7,4750.6,4.514]
[1756032651195,3.0,4750.7,4750.6,4.514]
[1756032651382,5.10495295,4750.7,4750.6,4.514]
[1756032653254,5.85715295,4750.7,4750.6,0.5]
[1756032654182,6.49016395,4750.7,4750.6,0.5]
[1756032654595,6.49016395,4750.7,4749.6,0.4326]
[1756032654596,2.10530748,4749.9,4749.1,0.04]
[1756032654806,2.41470748,4749.9,4749.1,0.04]
[1756032655010,2.85750748,4749.9,4749.1,0.04]
[1756032655170,5.94192848,4749.9,4749.1,0.04]
[1756032655370,6.38998065,4749.9,4749.1,0.04]
[1756032656407,6.38998065,4749.9,4749.2,3.556]
[1756032656989,9.94598065,4749.9,4749.2,3.556]
[1756032657812,9.94598065,4749.9,4749.1,0.04]
[1756032658403,10.27552909,4749.9,4749.1,0.04]
[1756032658807,6.38998065,4749.9,4749.1,0.04]
[1756032659013,5.94718065,4749.9,4749.1,0.04]
[1756032659414,6.38998065,4749.9,4749.1,0.04]
[1756032660813,6.38978797,4749.9,4749.1,0.04]
[1756032662817,6.71932908,4749.9,4749.1,0.04]
[1756032662997,6.27652908,4749.9,4749.1,0.04]
[1756032664931,6.71932908,4749.9,4749.1,0.04]
[1756032665928,6.27652908,4749.9,4749.1,0.04]
[1756032666094,6.71932908,4749.9,4749.1,0.04]
[1756032667201,5.96712908,4749.9,4749.8,0.320004]
[1756032667531,5.51926959,4749.9,4749.8,0.320004]
[1756032669942,5.51926959,4749.9,4749.8,0.752604]
[1756032670102,5.51926959,4749.9,4749.8,4.466104]
[1756032671537,3.41396211,4749.9,4749.8,4.9127144]
[1756032671700,0.084421,4749.9,4749.8,1.1992144]
[1756032671900,2.10505537,4750.5,4749.8,1.1992144]
[1756032672101,0.002,4750.6,4749.8,0.320004]
[1756032672102,2.18972848,4749.9,4749.8,0.320004]
[1756032674040,2.18972848,4749.9,4749.8,0.016804]
[1756032674604,2.18972848,4749.9,4749.8,0.320004]
[1756032674943,5.51922445,4749.9,4749.8,0.320004]
[1756032677040,5.51922445,4749.9,4749.8,0.752604]
[1756032677824,5.51922445,4749.9,4749.8,0.320004]
[1756032679437,5.18972848,4749.9,4749.8,0.320004]
[1756032682729,5.51921788,4749.9,4749.8,0.320004]
[1756032684962,5.51921788,4749.9,4749.8,4.033504]
[1756032685342,5.51921788,4749.9,4749.8,7.588504]
[1756032691133,5.18972848,4749.9,4749.8,7.588504]
[1756032691866,5.18972848,4749.9,4749.8,9.0196144]
[1756032692452,5.92662848,4749.9,4749.8,3.730304]
[1756032692650,5.92662848,4749.9,4749.8,7.285304]
[1756032694374,6.2561211,4749.9,4749.8,7.285304]
[1756032694542,5.8123211,4749.9,4749.8,7.285304]
[1756032694739,5.5192211,4749.9,4749.8,7.578104]
[1756032700996,5.5192211,4749.9,4749.8,7.285304]
[1756032701282,5.96876994,4749.9,4749.8,7.285304]
[1756032701488,6.26186994,4749.9,4749.8,3.730304]
[1756032701671,6.26186994,4749.9,4749.8,7.284304]
[1756032701672,6.70566994,4749.9,4749.8,7.284304]
[1756032702289,6.70566994,4749.9,4749.8,3.730304]
[1756032702593,6.70566994,4749.9,4749.8,7.284304]
[1756032705889,6.70566994,4749.9,4749.8,3.570804]
[1756032707864,6.26186994,4749.9,4749.8,3.570804]
[1756032708189,6.70566994,4749.9,4749.8,3.570804]
[1756032708789,6.70566994,4749.9,4749.8,7.284304]
[1756032709096,7.1311379,4749.9,4749.8,0.016804]
[1756032709389,6.57131354,4749.9,4749.8,0.016804]
[1756032709683,7.82497786,4749.9,4749.8,0.016804]
[1756032711381,7.82497786,4749.9,4749.3,3.7145]
[1756032711382,2.1054619,4749.6,4749.3,3.7145]
[1756032711612,2.39862911,4749.4,4749.3,0.001]
[1756032711754,5.84817795,4749.4,4749.3,0.001]
[1756032712088,6.95429595,4749.4,4749.3,0.001]
[1756032712995,7.28385166,4749.4,4749.3,0.001]
[1756032716163,6.81095166,4749.4,4749.3,0.001]
[1756032716371,7.28385166,4749.4,4749.3,0.001]
[1756032717761,10.83785166,4749.4,4749.3,0.001]
[1756032717966,11.59367811,4749.4,4749.3,0.001]
[1756032718779,11.59367811,4749.4,4749.3,1e-08]
[1756032718975,11.88259016,4749.4,4749.3,1e-08]
[1756032721472,11.32125723,4749.4,4749.3,1e-08]
[1756032721678,11.74741641,4749.4,4749.3,1e-08]
[1756032721880,11.45850436,4749.4,4749.3,1e-08]
[1756032722292,10.89727885,4749.4,4749.3,1e-08]
[1756032723315,7.34327885,4749.4,4749.3,1e-08]
[1756032723486,10.70278947,4749.4,4749.3,1e-08]
[1756032725129,11.03237406,4749.4,4749.3,1e-08]
[1756032727108,12.29837406,4749.4,4749.3,1e-08]
[1756032728129,8.74437406,4749.4,4749.3,1e-08]
[1756032728306,12.29837406,4749.4,4749.3,1e-08]
[1756032729418,11.96878947,4749.4,4749.3,1e-08]
[1756032729628,7.64878947,4749.4,4749.3,1e-08]
[1756032729788,6.38278947,4749.4,4749.3,0.29240001]
[1756032730222,6.38278947,4749.4,4749.3,1e-08]
[1756032730724,6.38278947,4749.4,4749.3,0.29240001]
[1756032732934,6.7123454,4749.4,4749.3,0.29240001]
[1756032734922,6.7123454,4749.4,4749.3,1e-08]
[1756032736292,7.46840876,4749.4,4749.3,1e-08]
[1756032736800,7.47040876,4749.4,4749.3,1e-08]
[1756032736994,8.73640876,4749.4,4749.3,1e-08]
[1756032737245,7.47040876,4749.4,4749.3,1e-08]
[1756032737398,7.47040876,4749.4,4749.3,0.29240001]
[1756032738221,7.47049714,4749.4,4749.3,0.29240001]
[1756032738424,6.90927163,4749.4,4749.3,0.29240001]
[1756032739045,7.47104402,4749.4,4749.3,0.29240001]
[1756032739246,6.7143454,4749.4,4749.3,0.29240001]
[1756032739428,6.7143454,4749.4,4749.3,1e-08]
[1756032740241,6.7143454,4749.4,4749.3,0.29240001]
[1756032740737,6.7143454,4749.4,4749.3,0.73830001]
[1756032740947,6.7143454,4749.4,4749.3,0.29240001]
[1756032741907,7.0044454,4749.4,4749.3,1e-08]
[1756032742106,7.66710472,4749.4,4749.3,1e-08]
[1756032742437,7.95602567,4749.4,4749.3,1e-08]
[1756032742638,7.62646974,4749.4,4749.3,1e-08]
[1756032743311,8.37211203,4749.4,4749.3,1e-08]
[1756032745640,6.57995769,4749.4,4749.3,0.29840001]
[1756032745847,6.90953753,4749.4,4749.3,0.29840001]
[1756032746139,7.66713753,4749.4,4749.3,1e-08]
[1756032747141,7.19963753,4749.4,4749.3,1e-08]
[1756032747316,10.75263753,4749.4,4749.3,1e-08]
[1756032747513,10.46253753,4749.4,4749.3,1e-08]
[1756032748418,11.22013753,4749.4,4749.3,1e-08]
[1756032749534,10.46253753,4749.4,4749.3,1e-08]
[1756032749740,10.13295769,4749.4,4749.3,0.29840001]
[1756032749918,10.13288498,4749.4,4749.3,0.29840001]
[1756032750115,6.57988498,4749.4,4749.3,0.29840001]
[1756032751448,6.57989075,4749.4,4749.3,0.29840001]
[1756032752347,6.57989768,4749.4,4749.3,0.29840001]
[1756032752741,6.90945885,4749.4,4749.3,0.29840001]
[1756032754848,6.90945885,4749.4,4749.3,0.76250001]
[1756032755241,6.90945885,4749.4,4749.3,0.29840001]
[1756032756755,3.71435064,4749.4,4749.3,0.76250001]
[1756032756941,1.60882153,4749.4,4749.3,0.76250001]
[1756032757114,1.15927269,4749.4,4749.3,0.76250001]
[1756032757518,3.2648018,4749.4,4749.3,0.76250001]
[1756032757754,6.71435064,4749.4,4749.3,0.76250001]
[1756032759552,6.71435064,4749.4,4749.3,0.29840001]
[1756032759733,7.00445064,4749.4,4749.3,1e-08]
[1756032760120,7.89948138,4749.4,4749.3,1e-08]
[1756032760640,6.67488947,4749.4,4749.3,1e-08]
[1756032760847,6.38478947,4749.4,4749.3,0.29840001]
[1756032761832,6.38478947,4749.4,4749.3,0.76250001]
[1756032762027,6.38478947,4749.4,4749.3,0.29840001]
[1756032763654,6.71433486,4749.4,4749.3,0.29840001]
[1756032763964,6.71433486,4749.4,4749.3,1e-08]
[1756032764330,7.00443486,4749.4,4749.3,1e-08]
[1756032764531,7.47193486,4749.4,4749.3,1e-08]
[1756032766427,11.02293486,4749.4,4749.3,1e-08]
[1756032766736,11.77997783,4749.4,4749.3,1e-08]
[1756032766936,11.02293486,4749.4,4749.3,1e-08]
[1756032767695,10.55543486,4749.4,4749.3,1e-08]
[1756032768247,11.02293486,4749.4,4749.3,1e-08]
[1756032768463,7.47193486,4749.4,4749.3,1e-08]
[1756032770092,6.71433486,4749.4,4749.3,1e-08]
[1756032770751,6.71433486,4749.4,4749.3,0.29840001]
[1756032772482,6.57980577,4749.4,4749.3,0.29840001]
[1756032773852,6.57980577,4749.4,4749.1,1e-08]
[1756032773853,4.266,4749.3,4749.1,1e-08]
[1756032774050,9.60728292,4749.2,4749.1,1e-08]
[1756032774263,10.07488292,4749.2,4749.1,1e-08]
[1756032774465,10.15932692,4749.2,4749.1,1e-08]
[1756032775587,11.75492273,4749.2,4749.1,1e-08]
[1756032775788,5.10566212,4749.1,4748.8,1e-08]
[1756032776085,3.3061,4748.9,4748.8,1e-08]
[1756032776284,3.95066514,4748.9,4748.8,1e-08]
[1756032776488,6.52401594,4748.9,4748.8,1e-08]
[1756032776662,7.15735394,4748.9,4748.8,1e-08]
[1756032777282,10.12097003,4748.9,4748.8,1e-08]
[1756032777491,9.70829474,4748.9,4748.8,1e-08]
[1756032777790,3.0,4748.0,4747.8,1e-08]
[1756032777969,9.60785945,4747.9,4747.8,1e-08]
[1756032778164,10.07545945,4747.9,4747.8,1e-08]
[1756032778360,10.15992345,4747.9,4747.8,1e-08]
[1756032778560,10.4895995,4747.9,4747.8,1e-08]
[1756032778904,10.59315506,4747.9,4747.8,1e-08]
[1756032779094,11.1533419,4747.9,4747.8,1e-08]
[1756032779469,10.82366585,4747.9,4747.8,1e-08]
[1756032780489,10.72011029,4747.9,4747.8,1e-08]
[1756032780905,6.97409399,4747.9,4747.8,1e-08]
[1756032781208,6.60835148,4747.9,4747.8,1e-08]
[1756032782296,6.41390715,4747.9,4747.8,1e-08]
[1756032782803,6.93784447,4747.9,4747.8,1e-08]
[1756032783302,11.56058394,4747.9,4747.8,1e-08]
[1756032783600,42.79200668,4747.9,4747.8,1e-08]
[1756032783908,42.04367964,4747.9,4747.8,1e-08]
[1756032784071,42.78927902,4747.9,4747.8,1e-08]
[1756032784272,8.49267964,4747.9,4747.8,1e-08]
[1756032784484,7.73616759,4747.9,4747.8,1e-08]
[1756032785498,7.54198394,4747.9,4747.8,1e-08]
[1756032786262,6.27598394,4747.9,4747.8,0.00100001]
[1756032787993,5.96988394,4747.9,4747.8,0.29080001]
[1756032789679,5.96988394,4747.9,4747.8,0.00100001]
[1756032790872,5.96988394,4747.9,4747.8,0.29080001]
[1756032791426,5.64020715,4747.9,4747.8,0.29080001]
[1756032791908,5.64020715,4747.9,4747.8,0.71980001]
[1756032792412,5.64020715,4747.9,4747.8,0.29080001]
[1756032792712,5.64020715,4747.9,4747.8,0.71980001]
[1756032792914,2.19065831,4747.9,4747.8,0.95378001]
[1756032793482,2.19065831,4747.9,4747.8,0.29080001]
[1756032793716,2.19065831,4747.9,4747.8,0.71980001]
[1756032793929,0.084464,4747.9,4747.8,0.71980001]
[1756032794710,0.3296217,4748.1,4747.8,0.29080001]
[1756032795093,0.3296217,4748.1,4747.9,0.429]
[1756032795289,0.3296217,4748.1,4748.0,0.2898]
[1756032795703,0.3296217,4748.1,4748.0,0.7188]
[1756032796412,2.4357273,4748.1,4748.0,0.7188]
[1756032796606,0.3296217,4748.1,4748.0,0.7188]
[1756032796913,2.4357273,4748.1,4748.0,0.7188]
[1756032797301,0.3296217,4748.1,4748.0,0.7188]
[1756032798109,2.4357273,4748.1,4748.0,0.7188]
[1756032798621,0.3296217,4748.1,4748.0,0.7188]
[1756032798824,0.3296217,4748.1,4748.0,4.87563]
[1756032798993,0.3296217,4748.1,4748.0,0.7188]
[1756032799193,0.633217,4748.8,4748.0,4.4323]
[1756032799399,2.1057533,4748.9,4748.1,4.1425]
[1756032799605,2.1057533,4748.9,4748.8,0.2898]
[1756032799800,3.0,4748.9,4748.8,0.2898]
[1756032799990,3.0,4748.9,4748.8,0.7188]
[1756032800186,5.1057508,4748.9,4748.8,0.7188]
[1756032800924,5.1057508,4748.9,4748.8,0.2898]
[1756032802727,5.43531268,4748.9,4748.8,0.2898]
[1756032803800,3.32956188,4748.9,4748.8,0.2898]
[1756032804121,5.43531268,4748.9,4748.8,0.7273]
[1756032804303,3.32956188,4748.9,4748.8,0.7273]
[1756032804706,0.32956188,4748.9,4748.8,1.17138]
[1756032806515,0.32956188,4748.9,4748.8,0.7273]
[1756032809143,0.32956188,4748.9,4748.8,0.2898]
[1756032809308,0.32956188,4748.9,4748.8,0.7273]
[1756032812234,0.32956188,4748.9,4748.8,4.4408]
[1756032812952,0.32956188,4748.9,4748.8,1.3873]
[1756032813159,0.002,4749.1,4748.9,0.66]
[1756032813341,0.002,4749.1,4749.0,3.8595]
[1756032813543,0.002,4749.1,4749.0,4.297]
[1756032815039,0.002,4749.1,4749.0,3.8595]
[1756032815244,0.002,4749.1,4749.0,4.297]
[1756032815557,0.002,4749.1,4749.0,5.980658]
[1756032817036,0.002,4749.1,4749.0,8.08636446]
[1756032817237,0.002,4749.1,4749.0,5.980658]
[1756032817966,0.002,4749.9,4749.0,5.543158]
[1756032818180,0.1079183,4750.6,4749.0,5.543158]
[1756032818181,0.042,4750.4,4750.3,2.1051302]
[1756032818319,0.042,4750.4,4750.3,13.25566067]
[1756032818525,0.002,4751.9,4750.7,2.76495295]
[1756032818744,0.002,4751.9,4750.7,6.74505295]
[1756032819018,0.002,4751.9,4750.7,7.18255295]
[1756032820932,0.002,4751.9,4750.7,10.18255295]
[1756032821186,0.002,4751.9,4750.7,14.22455075]
[1756032821662,0.002,4751.9,4750.7,12.00355075]
[1756032824534,0.4796,4751.8,4750.7,11.56605075]
[1756032825167,0.4796,4751.8,4750.7,12.00355075]
[1756032825882,0.4796,4751.8,4750.7,12.08790575]
[1756032827575,0.4796,4751.8,4750.7,11.65040575]
[1756032827790,0.3343,4750.8,4750.7,5.5719528]
[1756032828080,0.3343,4750.8,4750.7,0.189955]
[1756032828241,0.7919,4750.8,4750.7,3.562]
[1756032828666,0.3343,4750.8,4750.7,3.562]
[1756032828886,0.022,4750.8,4750.7,6.32695295]
[1756032829089,0.022,4750.8,4750.7,7.45484491]
[1756032833239,0.022,4750.8,4750.7,7.75344491]
[1756032833442,0.022,4750.8,4750.7,7.85904491]
[1756032833642,0.022,4750.8,4750.7,8.32954491]
[1756032835175,0.002,4752.1,4752.0,2.7643771]
[1756032835396,0.002,4752.1,4752.0,16.01696481]
[1756032835753,0.002,4752.1,4752.0,16.10129981]
[1756032835954,0.002,4752.1,4752.0,16.57179981]
[1756032839450,0.002,4752.1,4752.0,15.80269981]
[1756032839841,0.002,4752.1,4752.0,16.10129981]
[1756032842581,0.002,4752.1,4752.0,15.80269981]
[1756032842787,0.002,4752.1,4752.0,16.10129981]
[1756032843174,0.02,4752.8,4752.7,0.66]
[1756032843380,0.02,4752.8,4752.7,3.558]
[1756032843577,0.3199,4752.8,4752.7,3.558]
[1756032843781,0.7928,4752.8,4752.7,3.558]
[1756032846509,0.7928,4752.8,4752.6,3.5755]
[1756032846691,0.3199,4752.8,4752.7,3.556]
[1756032847394,1.24051847,4752.8,4752.7,3.556]
[1756032847690,1.24051847,4752.8,4752.7,3.5755]
[1756032847894,1.24051847,4752.8,4752.1,3.5755]
[1756032848091,2.10411183,4752.6,4752.2,3.556]
[1756032848390,0.2999,4752.3,4752.2,3.556]
[1756032848594,0.7728,4752.3,4752.2,3.556]
[1756032848794,1.22051847,4752.3,4752.2,3.556]
[1756032848984,1.22051847,4752.3,4752.2,3.557]
[1756032849392,1.22051847,4752.3,4752.1,3.5755]
[1756032849579,0.74761847,4752.3,4752.2,3.557]
[1756032849990,2.85186273,4752.3,4752.2,3.557]
[1756032850163,1.22051847,4752.3,4752.2,3.557]
[1756032850365,0.7728,4752.3,4752.2,3.557]
[1756032850980,0.7728,4752.3,4752.2,3.556]
[1756032852692,0.7748,4752.3,4752.2,3.556]
[1756032853673,0.7748,4752.3,4752.2,7.1315]
[1756032855187,0.002,4752.3,4752.2,7.1315]
[1756032855392,0.002,4752.3,4752.2,8.21709307]
[1756032855586,0.002,4752.3,4752.2,8.51569307]
[1756032855992,0.002,4752.3,4752.2,8.21709307]
[1756032857415,0.7748,4752.3,4752.2,7.1315]
[1756032859322,0.3019,4752.3,4752.2,7.1315]
[1756032860125,0.7748,4752.3,4752.2,3.5755]
[1756032860307,0.7748,4752.3,4752.2,7.1265]
[1756032862538,0.002,4752.3,4752.2,7.416]
[1756032862721,0.002,4752.3,4752.2,9.0226]
[1756032864847,0.002,4752.3,4752.2,8.7331]
[1756032865835,0.002,4752.3,4752.2,9.0226]
[1756032866589,0.002,4752.3,4752.2,9.6826]
[1756032866961,0.002,4752.3,4752.2,11.78688854]
[1756032867467,0.002,4752.3,4752.2,12.25238854]
[1756032868073,0.002,4752.3,4752.2,9.6826]
[1756032869582,0.002,4752.3,4752.2,8.21138854]
[1756032869876,0.002,4752.3,4752.2,8.78248854]
[1756032871177,0.002,4752.6,4752.5,6.3376557]
[1756032871343,0.002,4752.6,4752.5,12.4226337]
[1756032871543,0.002,4752.6,4752.5,12.8881337]
[1756032871770,0.002,4752.6,4752.5,19.9181337]
[1756032871970,0.002,4752.6,4752.5,12.8881337]
[1756032872370,0.002,4752.6,4752.5,19.9181337]
[1756032872566,0.002,4752.6,4752.5,12.8881337]
[1756032873467,0.002,4752.6,4752.5,9.3146337]
[1756032873884,0.002,4752.6,4752.5,7.1727557]
[1756032874743,0.002,4752.6,4752.5,17.7762557]
[1756032878746,0.002,4752.6,4752.5,17.3107557]
[1756032881163,0.4877,4753.8,4753.5,3.859176]
[1756032881360,0.3113,4753.6,4753.5,9.62047818]
[1756032881556,0.3113,4753.6,4753.5,11.72419123]
[1756032881557,0.002,4753.6,4753.5,11.72419123]
[1756032881847,0.002,4753.6,4753.5,12.01369123]
[1756032883285,0.002,4753.6,4753.5,12.47919123]
[1756032883669,0.002,4753.6,4753.5,19.61399123]
[1756032888303,0.04,4755.4,4755.1,0.66]
[1756032888462,0.04,4755.4,4755.3,0.7648]
[1756032888663,0.3493,4755.4,4755.3,5.97889274]
[1756032889065,0.795,4755.4,4755.3,5.97889274]
[1756032889265,0.795,4755.4,4755.3,7.30348191]
[1756032889885,0.795,4755.4,4755.3,5.20056517]
[1756032890291,0.795,4755.4,4755.3,7.30348191]
[1756032891163,0.795,4755.4,4755.3,4.19230591]
[1756032891364,0.745,4755.4,4755.3,4.19230591]
[1756032891996,0.084283,4755.9,4755.7,0.66]
[1756032892267,0.3232,4755.8,4755.7,6.30873987]
[1756032892572,0.3232,4755.8,4755.7,6.41353987]
[1756032892573,0.022,4755.8,4755.7,6.41353987]
[1756032892993,0.022,4755.8,4755.7,6.70943987]
[1756032893385,0.022,4755.8,4755.7,6.41353987]
[1756032893699,0.022,4755.8,4755.7,7.35873763]
[1756032894079,0.3232,4755.8,4755.7,7.35873763]
[1756032894398,0.3232,4755.8,4755.7,1.70999776]
[1756032894589,0.7972,4755.8,4755.7,4.3108]
[1756032895171,0.7972,4755.8,4755.7,3.545]
[1756032896194,0.7972,4755.8,4755.7,4.205]
[1756032897286,0.7972,4755.8,4755.7,6.30773987]
[1756032897798,0.022,4755.8,4755.7,6.30773987]
[1756032897997,0.022,4755.8,4755.7,7.04331386]
[1756032898675,0.022,4755.8,4755.7,7.33921386]
[1756032900087,0.022,4755.8,4755.7,7.04331386]
[1756032900391,0.022,4755.8,4755.7,7.33921386]
[1756032900781,0.022,4755.8,4755.7,7.04331386]
[1756032901304,0.022,4755.8,4755.7,7.33921386]
[1756032903302,0.022,4755.8,4755.7,7.79191386]
[1756032905171,0.022,4755.8,4755.7,13.01291386]
[1756032905500,0.002,4756.3,4756.2,2.76251881]
[1756032905702,0.002,4756.3,4756.2,8.92902929]
[1756032906070,0.002,4756.3,4756.2,9.48652929]
[1756032908579,0.002,4756.3,4756.2,9.03282929]
[1756032908785,0.7772,4756.3,4756.2,8.07692929]
[1756032909409,0.002,4756.3,4756.2,8.07692929]
[1756032909603,0.002,4756.3,4756.2,9.03282929]
[1756032910004,0.002,4756.3,4756.2,8.73692929]
[1756032910187,0.7772,4756.3,4756.2,8.73692929]
[1756032911116,0.3032,4756.3,4756.2,8.73692929]
[1756032911303,0.7772,4756.3,4756.2,8.73692929]
[1756032912820,0.002,4756.3,4756.2,12.03282929]
[1756032913020,0.002,4756.3,4756.2,12.48552929]
[1756032913736,0.002,4756.3,4756.2,12.03282929]